[Event "Live Chess"]
[Site "Chess.com"]
[Date "2023.05.20"]
[Round "-"]
[White "JackCheetham1"]
[Black "martinsmartin63"]
[Result "1-0"]
[WhiteElo "1707"]
[BlackElo "760"]
[TimeControl "300"]
[EndTime "9:31:18 PDT"]
[Termination "JackCheetham1 won by resignation"]

1. e4 {[%clk 0:04:56.9]} 1... e5 {[%clk 0:04:56.4]} 2. Nf3 {[%clk 0:04:55.6]}
2... Nc6 {[%clk 0:04:53.4]} 3. Bb5 {[%clk 0:04:54.7]} 3... d6 {[%clk 0:04:50.4]}
4. c3 {[%clk 0:04:53.5]} 4... Bd7 {[%clk 0:04:47.1]} 5. d3 {[%clk 0:04:50.6]}
5... Be7 {[%clk 0:04:43.6]} 6. h3 {[%clk 0:04:48.3]} 6... Nf6 {[%clk 0:04:41.3]}
7. O-O {[%clk 0:04:46.2]} 7... a6 {[%clk 0:04:35.4]} 8. Ba4 {[%clk 0:04:44.6]}
8... d5 {[%clk 0:04:26.3]} 9. exd5 {[%clk 0:04:18.5]} 9... Nxd5 {[%clk
0:04:22.2]} 10. Bb3 {[%clk 0:04:09.6]} 10... Nf6 {[%clk 0:04:13]} 11. Re1 {[%clk
0:04:07.1]} 11... O-O {[%clk 0:04:10.7]} 12. Bg5 {[%clk 0:03:54.5]} 12... Na5
{[%clk 0:04:02.2]} 13. Nxe5 {[%clk 0:03:42.7]} 13... Nxb3 {[%clk 0:03:58]} 14.
Qxb3 {[%clk 0:03:39.7]} 14... Be6 {[%clk 0:03:47.3]} 15. Qc2 {[%clk 0:03:23]}
15... Re8 {[%clk 0:03:39]} 16. d4 {[%clk 0:03:18.1]} 16... Nd5 {[%clk
0:03:27.7]} 17. Bxe7 {[%clk 0:03:13.5]} 17... Qxe7 {[%clk 0:03:24.9]} 18. Nd2
{[%clk 0:03:10.6]} 18... Qg5 {[%clk 0:03:18.8]} 19. Ndf3 {[%clk 0:03:03.9]}
19... Qh5 {[%clk 0:03:02]} 20. Qe4 {[%clk 0:02:22.2]} 20... Bxh3 {[%clk
0:02:54.9]} 21. gxh3 {[%clk 0:02:01.4]} 21... Nf6 {[%clk 0:02:45.2]} 22. Qf4
{[%clk 0:01:50.9]} 22... Rxe5 {[%clk 0:02:24]} 23. Rxe5 {[%clk 0:01:38.1]} 23...
Qxh3 {[%clk 0:02:06.8]} 24. Qg3 {[%clk 0:01:34.6]} 24... Qxg3+ {[%clk
0:01:42.7]} 25. fxg3 {[%clk 0:01:33]} 25... c6 {[%clk 0:01:37.3]} 26. Rae1
{[%clk 0:01:29.9]} 26... h6 {[%clk 0:01:33.6]} 27. Re7 {[%clk 0:01:21.3]} 27...
b5 {[%clk 0:01:29.4]} 28. Ne5 {[%clk 0:01:20]} 28... c5 {[%clk 0:01:25.8]} 29.
Nxf7 {[%clk 0:01:15.7]} 29... cxd4 {[%clk 0:01:16.2]} 30. cxd4 {[%clk
0:01:15.6]} 30... Rc8 {[%clk 0:01:05.3]} 31. R1e2 {[%clk 0:01:01.8]} 31... Rc1+
{[%clk 0:01:01.4]} 32. Kg2 {[%clk 0:00:59.9]} 32... Rc4 {[%clk 0:00:48.5]} 33.
Rd2 {[%clk 0:00:54.5]} 33... b4 {[%clk 0:00:37.8]} 34. d5 {[%clk 0:00:53.5]}
34... a5 {[%clk 0:00:32.1]} 35. d6 {[%clk 0:00:52.5]} 35... Rc7 {[%clk
0:00:19.1]} 36. dxc7 {[%clk 0:00:49.8]} 1-0

[Event "Live Chess"]
[Site "Chess.com"]
[Date "2023.05.20"]
[Round "-"]
[White "hello505050"]
[Black "Nico14021974"]
[Result "1-0"]
[WhiteElo "1075"]
[BlackElo "788"]
[TimeControl "300"]
[EndTime "9:31:20 PDT"]
[Termination "hello505050 won by checkmate"]

1. e4 {[%clk 0:04:58.5]} 1... e5 {[%clk 0:04:58.1]} 2. Nf3 {[%clk 0:04:57.5]}
2... d6 {[%clk 0:04:56]} 3. Bc4 {[%clk 0:04:55.8]} 3... Nc6 {[%clk 0:04:51.4]}
4. d3 {[%clk 0:04:54.5]} 4... Nf6 {[%clk 0:04:48.8]} 5. Ng5 {[%clk 0:04:53.5]}
5... Be7 {[%clk 0:04:43.9]} 6. Nxf7 {[%clk 0:04:52]} 6... Rf8 {[%clk 0:04:27.3]}
7. Nxd8 {[%clk 0:04:49.6]} 7... Kxd8 {[%clk 0:04:26.3]} 8. Bg5 {[%clk
0:04:45.8]} 8... h6 {[%clk 0:04:22]} 9. Bxf6 {[%clk 0:04:44]} 9... Bxf6 {[%clk
0:04:20.7]} 10. Nc3 {[%clk 0:04:39]} 10... Re8 {[%clk 0:04:17.6]} 11. Bf7 {[%clk
0:04:33.3]} 11... Rf8 {[%clk 0:04:12]} 12. Bd5 {[%clk 0:04:32.3]} 12... Re8
{[%clk 0:04:03.9]} 13. Bxc6 {[%clk 0:04:30.4]} 13... bxc6 {[%clk 0:04:02.3]} 14.
d4 {[%clk 0:04:24.3]} 14... exd4 {[%clk 0:04:00.8]} 15. Ne2 {[%clk 0:04:20.8]}
15... Rb8 {[%clk 0:03:56.3]} 16. Nxd4 {[%clk 0:04:18.3]} 16... c5 {[%clk
0:03:52.6]} 17. Nf5 {[%clk 0:04:04.6]} 17... c6 {[%clk 0:03:41.2]} 18. Qxd6+
{[%clk 0:03:57.6]} 18... Bd7 {[%clk 0:03:31.8]} 19. Qxb8+ {[%clk 0:03:55.6]}
19... Bc8 {[%clk 0:03:29.6]} 20. O-O-O+ {[%clk 0:03:48]} 20... Bd4 {[%clk
0:03:06.1]} 21. Nxd4 {[%clk 0:03:46.7]} 21... cxd4 {[%clk 0:03:04.6]} 22. Rxd4+
{[%clk 0:03:46.6]} 22... Ke7 {[%clk 0:03:00.6]} 23. Qxa7+ {[%clk 0:03:42.6]}
23... Kf8 {[%clk 0:02:55.4]} 24. Qc5+ {[%clk 0:03:38.2]} 24... Kf7 {[%clk
0:02:49.8]} 25. Qxc6 {[%clk 0:03:33.6]} 25... Bd7 {[%clk 0:02:48.9]} 26. Qd5+
{[%clk 0:03:31.1]} 26... Ke7 {[%clk 0:02:47.8]} 27. Qxd7+ {[%clk 0:03:30.2]}
27... Kf8 {[%clk 0:02:43.2]} 28. e5 {[%clk 0:03:27.9]} 28... g5 {[%clk
0:02:39.1]} 29. e6 {[%clk 0:03:24]} 29... h5 {[%clk 0:02:35.3]} 30. Qf7# {[%clk
0:03:23]} 1-0

[Event "Live Chess"]
[Site "Chess.com"]
[Date "2023.05.20"]
[Round "-"]
[White "Vedant-1411"]
[Black "YF22Raptor"]
[Result "1-0"]
[WhiteElo "871"]
[BlackElo "1010"]
[TimeControl "300"]
[EndTime "9:31:33 PDT"]
[Termination "Vedant-1411 won by checkmate"]

1. d4 {[%clk 0:04:55.1]} 1... c6 {[%clk 0:04:59.5]} 2. Nf3 {[%clk 0:04:53.7]}
2... d5 {[%clk 0:04:58.9]} 3. Nc3 {[%clk 0:04:50.4]} 3... Nf6 {[%clk 0:04:56.6]}
4. Bf4 {[%clk 0:04:49.4]} 4... Bg4 {[%clk 0:04:54.8]} 5. e3 {[%clk 0:04:47.8]}
5... Bxf3 {[%clk 0:04:53.7]} 6. Qxf3 {[%clk 0:04:45.9]} 6... e6 {[%clk
0:04:53.4]} 7. Bd3 {[%clk 0:04:44.7]} 7... c5 {[%clk 0:04:52.3]} 8. dxc5 {[%clk
0:04:42.2]} 8... Bxc5 {[%clk 0:04:51.9]} 9. O-O {[%clk 0:04:40.4]} 9... O-O
{[%clk 0:04:50.9]} 10. Qg3 {[%clk 0:04:38.1]} 10... Nc6 {[%clk 0:04:42.8]} 11.
Bh6 {[%clk 0:04:33.3]} 11... Nh5 {[%clk 0:04:38.9]} 12. Qg4 {[%clk 0:04:28]}
12... g6 {[%clk 0:04:23.2]} 13. Bxf8 {[%clk 0:04:25]} 13... Qxf8 {[%clk
0:04:22.6]} 14. Na4 {[%clk 0:04:18.3]} 14... Bd6 {[%clk 0:04:04]} 15. Be2 {[%clk
0:04:14.6]} 15... Nf6 {[%clk 0:04:02.5]} 16. Qf3 {[%clk 0:04:11.2]} 16... Qg7
{[%clk 0:03:58.2]} 17. c4 {[%clk 0:04:03.1]} 17... Ne5 {[%clk 0:03:56.1]} 18.
Qg3 {[%clk 0:03:55.5]} 18... Nxc4 {[%clk 0:03:50.8]} 19. Qf3 {[%clk 0:03:48.7]}
19... Nd2 {[%clk 0:03:46]} 20. Qh3 {[%clk 0:03:41]} 20... Nxf1 {[%clk
0:03:42.6]} 21. Rxf1 {[%clk 0:03:37.8]} 21... Ne4 {[%clk 0:03:37.7]} 22. Bd3
{[%clk 0:03:22.3]} 22... Nd2 {[%clk 0:03:30.4]} 23. Rd1 {[%clk 0:03:11]} 23...
Ne4 {[%clk 0:03:23.5]} 24. Bxe4 {[%clk 0:03:09]} 24... Bxh2+ {[%clk 0:03:16.2]}
25. Qxh2 {[%clk 0:03:04.8]} 25... dxe4 {[%clk 0:03:14.8]} 26. Qf4 {[%clk
0:03:00.4]} 26... f5 {[%clk 0:03:11.3]} 27. Nc5 {[%clk 0:02:54.4]} 27... e5
{[%clk 0:03:00.9]} 28. Qg5 {[%clk 0:02:31.1]} 28... h6 {[%clk 0:02:59.3]} 29.
Qh4 {[%clk 0:02:24.3]} 29... b6 {[%clk 0:02:46.1]} 30. Ne6 {[%clk 0:02:21]}
30... Qf7 {[%clk 0:02:42.3]} 31. Nd8 {[%clk 0:02:09.8]} 31... Qxa2 {[%clk
0:02:36.3]} 32. Qxh6 {[%clk 0:01:59.5]} 32... Qxb2 {[%clk 0:02:25.1]} 33. Qxg6+
{[%clk 0:01:58.3]} 33... Kh8 {[%clk 0:02:20.6]} 34. Nf7# {[%clk 0:01:56.6]} 1-0

[Event "Live Chess"]
[Site "Chess.com"]
[Date "2023.05.20"]
[Round "-"]
[White "Enhard"]
[Black "flyingpuffins"]
[Result "0-1"]
[WhiteElo "1386"]
[BlackElo "1984"]
[TimeControl "300"]
[EndTime "9:31:46 PDT"]
[Termination "flyingpuffins won by resignation"]

1. d4 {[%clk 0:04:58.4]} 1... d5 {[%clk 0:04:58.8]} 2. Bf4 {[%clk 0:04:57.2]}
2... Nf6 {[%clk 0:04:57.6]} 3. e3 {[%clk 0:04:55.9]} 3... c5 {[%clk 0:04:57]} 4.
c3 {[%clk 0:04:54.9]} 4... Nc6 {[%clk 0:04:56.3]} 5. Nf3 {[%clk 0:04:53.5]} 5...
Qb6 {[%clk 0:04:55.4]} 6. Qb3 {[%clk 0:04:52.2]} 6... c4 {[%clk 0:04:54.4]} 7.
Qxb6 {[%clk 0:04:50.4]} 7... axb6 {[%clk 0:04:54.3]} 8. Nbd2 {[%clk 0:04:48.6]}
8... b5 {[%clk 0:04:53.5]} 9. Be2 {[%clk 0:04:47.9]} 9... b4 {[%clk 0:04:51.7]}
10. O-O {[%clk 0:04:45.8]} 10... Bf5 {[%clk 0:04:49]} 11. cxb4 {[%clk
0:04:35.9]} 11... Nxb4 {[%clk 0:04:45.9]} 12. a3 {[%clk 0:04:27.8]} 12... Nd3
{[%clk 0:04:43.8]} 13. Ra2 {[%clk 0:04:03]} 13... e6 {[%clk 0:04:37.2]} 14. Ne5
{[%clk 0:03:53.5]} 14... Bb4 {[%clk 0:04:21.1]} 15. Nb1 {[%clk 0:03:37.6]} 15...
Ke7 {[%clk 0:04:04.2]} 16. Nc3 {[%clk 0:03:36.1]} 16... Bxc3 {[%clk 0:03:59.4]}
17. bxc3 {[%clk 0:03:33.2]} 17... Ra4 {[%clk 0:03:53.9]} 18. h3 {[%clk
0:03:28.6]} 18... Rha8 {[%clk 0:03:51.7]} 19. Rfa1 {[%clk 0:03:27]} 19... Nxf4
{[%clk 0:03:45.8]} 20. exf4 {[%clk 0:03:17.9]} 20... Ne4 {[%clk 0:03:45]} 21.
Rc1 {[%clk 0:02:41.3]} 21... Rxa3 {[%clk 0:03:42]} 22. Rxa3 {[%clk 0:02:40.1]}
22... Rxa3 {[%clk 0:03:40.6]} 23. g4 {[%clk 0:02:36.2]} 23... Rxc3 {[%clk
0:03:19]} 24. Rxc3 {[%clk 0:02:29.2]} 24... Nxc3 {[%clk 0:03:17.5]} 25. Bf3
{[%clk 0:02:23.2]} 25... Be4 {[%clk 0:03:13.7]} 26. Kf1 {[%clk 0:02:14.5]} 26...
Bxf3 {[%clk 0:03:12.4]} 27. Nxf3 {[%clk 0:02:13.3]} 27... b5 {[%clk 0:03:10.8]}
28. Ke1 {[%clk 0:02:11.9]} 28... b4 {[%clk 0:03:10]} 29. Kd2 {[%clk 0:02:11.4]}
29... Ne4+ {[%clk 0:03:08.2]} 30. Ke2 {[%clk 0:02:07.2]} 30... b3 {[%clk
0:03:07.3]} 31. Nd2 {[%clk 0:02:05.1]} 31... b2 {[%clk 0:02:59.1]} 32. Nb1
{[%clk 0:02:01.5]} 32... Kd6 {[%clk 0:02:55.4]} 33. f3 {[%clk 0:01:58.5]} 33...
Nf6 {[%clk 0:02:49.9]} 34. Kd2 {[%clk 0:01:53.7]} 34... h5 {[%clk 0:02:46.5]}
35. g5 {[%clk 0:01:41.5]} 35... Nh7 {[%clk 0:02:37.1]} 36. Kc3 {[%clk
0:01:39.6]} 36... f6 {[%clk 0:02:36.5]} 37. Kxb2 {[%clk 0:01:37.9]} 37... fxg5
{[%clk 0:02:35]} 38. fxg5 {[%clk 0:01:36.7]} 38... Nxg5 {[%clk 0:02:34.9]} 39.
Nd2 {[%clk 0:01:36.1]} 39... Nxh3 {[%clk 0:02:33.6]} 40. Kc3 {[%clk 0:01:34.3]}
40... Nf4 {[%clk 0:02:29.7]} 41. Nf1 {[%clk 0:01:32.1]} 41... e5 {[%clk
0:02:28.5]} 42. dxe5+ {[%clk 0:01:30]} 42... Kxe5 {[%clk 0:02:28.4]} 43. Ng3
{[%clk 0:01:29.3]} 43... h4 {[%clk 0:02:27.1]} 44. Nh1 {[%clk 0:01:26.2]} 44...
g5 {[%clk 0:02:20.7]} 45. Nf2 {[%clk 0:01:25.3]} 45... h3 {[%clk 0:02:19.3]} 46.
Ng4+ {[%clk 0:01:20.8]} 46... Kf5 {[%clk 0:02:17.7]} 47. Kd4 {[%clk 0:01:12.4]}
0-1

[Event "Live Chess"]
[Site "Chess.com"]
[Date "2023.05.20"]
[Round "-"]
[White "JackRudd"]
[Black "ossie57"]
[Result "1-0"]
[WhiteElo "2424"]
[BlackElo "1852"]
[TimeControl "300"]
[EndTime "9:31:47 PDT"]
[Termination "JackRudd won by resignation"]

1. d4 {[%clk 0:04:58.9]} 1... d5 {[%clk 0:04:56.1]} 2. c4 {[%clk 0:04:57.8]}
2... c6 {[%clk 0:04:55.3]} 3. Nf3 {[%clk 0:04:56.5]} 3... Nf6 {[%clk 0:04:53.4]}
4. Qc2 {[%clk 0:04:55.2]} 4... g6 {[%clk 0:04:42.7]} 5. Nbd2 {[%clk 0:04:53.5]}
5... Bg7 {[%clk 0:04:41.7]} 6. e3 {[%clk 0:04:49.9]} 6... O-O {[%clk 0:04:39.7]}
7. Bd3 {[%clk 0:04:49]} 7... dxc4 {[%clk 0:04:38.1]} 8. Nxc4 {[%clk 0:04:47.6]}
8... Bg4 {[%clk 0:04:33.9]} 9. Bd2 {[%clk 0:04:44.8]} 9... Bxf3 {[%clk
0:04:26.5]} 10. gxf3 {[%clk 0:04:43.9]} 10... b5 {[%clk 0:04:24.5]} 11. Ne5
{[%clk 0:04:42.6]} 11... Qd5 {[%clk 0:04:14.1]} 12. a4 {[%clk 0:04:39.7]} 12...
Nbd7 {[%clk 0:04:09]} 13. Nxc6 {[%clk 0:04:35.8]} 13... Qxf3 {[%clk 0:04:03.8]}
14. Nxe7+ {[%clk 0:04:34.8]} 14... Kh8 {[%clk 0:04:02.8]} 15. Rf1 {[%clk
0:04:33.4]} 15... Rfe8 {[%clk 0:03:44.9]} 16. Nc6 {[%clk 0:04:29.4]} 16... Ng4
{[%clk 0:03:37.7]} 17. Be2 {[%clk 0:04:26.5]} 17... Qh3 {[%clk 0:03:15.7]} 18.
axb5 {[%clk 0:04:22.3]} 18... Nxh2 {[%clk 0:03:14.6]} 19. Rg1 {[%clk 0:04:17.3]}
19... Nf3+ {[%clk 0:03:07.8]} 20. Bxf3 {[%clk 0:04:16.4]} 20... Qxf3 {[%clk
0:03:07.1]} 21. Qd1 {[%clk 0:04:03.3]} 21... Qxc6 {[%clk 0:03:04.5]} 22. bxc6
{[%clk 0:04:01.7]} 1-0

[Event "Live Chess"]
[Site "Chess.com"]
[Date "2023.05.20"]
[Round "-"]
[White "risinghelios"]
[Black "LodeshChess"]
[Result "1-0"]
[WhiteElo "1954"]
[BlackElo "874"]
[TimeControl "300"]
[EndTime "9:31:49 PDT"]
[Termination "risinghelios won by resignation"]

1. e4 {[%clk 0:04:57.6]} 1... c6 {[%clk 0:04:59.6]} 2. d4 {[%clk 0:04:56.5]}
2... d5 {[%clk 0:04:59]} 3. exd5 {[%clk 0:04:56.4]} 3... cxd5 {[%clk 0:04:58.5]}
4. Nf3 {[%clk 0:04:56.3]} 4... Bg4 {[%clk 0:04:55.1]} 5. c3 {[%clk 0:04:56.2]}
5... Bxf3 {[%clk 0:04:54.6]} 6. Qxf3 {[%clk 0:04:55.5]} 6... Nf6 {[%clk
0:04:52.3]} 7. Bb5+ {[%clk 0:04:54.8]} 7... Nc6 {[%clk 0:04:49.6]} 8. Bf4 {[%clk
0:04:54.1]} 8... e6 {[%clk 0:04:46]} 9. O-O {[%clk 0:04:53.3]} 9... Bd6 {[%clk
0:04:45.4]} 10. Bxd6 {[%clk 0:04:52.2]} 10... Qxd6 {[%clk 0:04:45]} 11. Nd2
{[%clk 0:04:52.1]} 11... a6 {[%clk 0:04:43.2]} 12. Bxc6+ {[%clk 0:04:51.1]}
12... Qxc6 {[%clk 0:04:42.6]} 13. Nb3 {[%clk 0:04:50.3]} 13... O-O {[%clk
0:04:40.2]} 14. Rfe1 {[%clk 0:04:47]} 14... b5 {[%clk 0:04:38.3]} 15. Re5 {[%clk
0:04:44.7]} 15... a5 {[%clk 0:04:28.5]} 16. Rg5 {[%clk 0:04:43.2]} 16... h6
{[%clk 0:04:04.5]} 17. Rg3 {[%clk 0:04:41.4]} 17... Nh7 {[%clk 0:04:03.5]} 18.
Nc5 {[%clk 0:04:35.9]} 18... b4 {[%clk 0:03:51.3]} 19. Qg4 {[%clk 0:04:33.4]}
19... Ng5 {[%clk 0:03:48]} 20. h4 {[%clk 0:04:31.1]} 20... g6 {[%clk 0:03:33.4]}
21. hxg5 {[%clk 0:04:29.7]} 21... h5 {[%clk 0:03:33.1]} 22. Qf4 {[%clk
0:04:27.5]} 22... bxc3 {[%clk 0:03:32.3]} 23. Rxc3 {[%clk 0:04:26.6]} 23... Qb5
{[%clk 0:03:16.9]} 24. Qf6 {[%clk 0:04:17.3]} 24... Qxb2 {[%clk 0:02:58.7]} 25.
Rac1 {[%clk 0:04:15.4]} 25... Rac8 {[%clk 0:02:39.4]} 26. Nxe6 {[%clk
0:04:02.5]} 26... Qxc1+ {[%clk 0:01:50.6]} 27. Rxc1 {[%clk 0:04:01.2]} 27...
fxe6 {[%clk 0:01:50.1]} 28. Kh2 {[%clk 0:04:01.1]} 28... Rxf6 {[%clk 0:01:38.9]}
29. Rxc8+ {[%clk 0:04:00]} 29... Kf7 {[%clk 0:01:38.3]} 30. gxf6 {[%clk
0:03:58.7]} 30... Kxf6 {[%clk 0:01:37.6]} 31. Rc5 {[%clk 0:03:56]} 1-0

[Event "Live Chess"]
[Site "Chess.com"]
[Date "2023.05.20"]
[Round "-"]
[White "toog"]
[Black "SaraTang"]
[Result "1-0"]
[WhiteElo "2635"]
[BlackElo "168"]
[TimeControl "300"]
[EndTime "9:31:50 PDT"]
[Termination "toog won by checkmate"]

1. e4 {[%clk 0:04:58.4]} 1... e5 {[%clk 0:04:53.3]} 2. Nf3 {[%clk 0:04:57.2]}
2... Nf6 {[%clk 0:04:51.5]} 3. Nxe5 {[%clk 0:04:55.7]} 3... Nxe4 {[%clk
0:04:32.7]} 4. Qe2 {[%clk 0:04:53.7]} 4... d6 {[%clk 0:04:26.6]} 5. Nf3 {[%clk
0:04:51.3]} 5... d5 {[%clk 0:04:21.7]} 6. d3 {[%clk 0:04:50]} 6... Qe7 {[%clk
0:04:18.1]} 7. dxe4 {[%clk 0:04:48.8]} 7... dxe4 {[%clk 0:04:16.2]} 8. Ng5
{[%clk 0:04:48]} 8... e3 {[%clk 0:03:56.4]} 9. Bxe3 {[%clk 0:04:45.9]} 9... f6
{[%clk 0:03:51]} 10. Nf3 {[%clk 0:04:43.7]} 10... h6 {[%clk 0:03:46.3]} 11. Nc3
{[%clk 0:04:40.7]} 11... g6 {[%clk 0:03:42.1]} 12. O-O-O {[%clk 0:04:38.7]}
12... Bg7 {[%clk 0:03:39.4]} 13. Nd5 {[%clk 0:04:37.6]} 13... Qe6 {[%clk
0:03:31.8]} 14. Nxc7+ {[%clk 0:04:35.7]} 14... Ke7 {[%clk 0:03:15.1]} 15. Bc5+
{[%clk 0:04:33.4]} 15... Kf7 {[%clk 0:03:11.5]} 16. Nxe6 {[%clk 0:04:31.4]}
16... Kg8 {[%clk 0:03:07.7]} 17. Nxg7 {[%clk 0:04:28.6]} 17... Kxg7 {[%clk
0:03:04.2]} 18. Qe7+ {[%clk 0:04:26.3]} 18... Kg8 {[%clk 0:03:01.3]} 19. Bc4+
{[%clk 0:04:26.2]} 19... Be6 {[%clk 0:02:53.3]} 20. Bxe6# {[%clk 0:04:26.1]} 1-0

[Event "Live Chess"]
[Site "Chess.com"]
[Date "2023.05.20"]
[Round "-"]
[White "Greenbecker"]
[Black "Crowded_House"]
[Result "1/2-1/2"]
[WhiteElo "1703"]
[BlackElo "1678"]
[TimeControl "300"]
[EndTime "9:32:04 PDT"]
[Termination "Game drawn by agreement"]

1. e4 {[%clk 0:04:57]} 1... e6 {[%clk 0:04:58.9]} 2. d4 {[%clk 0:04:55.4]} 2...
d5 {[%clk 0:04:58.6]} 3. exd5 {[%clk 0:04:54.2]} 3... exd5 {[%clk 0:04:57.1]} 4.
Bd3 {[%clk 0:04:52.6]} 4... Bd6 {[%clk 0:04:54.2]} 5. h3 {[%clk 0:04:48.1]} 5...
Ne7 {[%clk 0:04:52.4]} 6. Nf3 {[%clk 0:04:46.9]} 6... Bf5 {[%clk 0:04:47]} 7.
O-O {[%clk 0:04:43.6]} 7... O-O {[%clk 0:04:45]} 8. Bg5 {[%clk 0:04:35.9]} 8...
f6 {[%clk 0:04:42.9]} 9. Bh4 {[%clk 0:04:31.5]} 9... Bxd3 {[%clk 0:04:39.7]} 10.
Qxd3 {[%clk 0:04:29.3]} 10... Ng6 {[%clk 0:04:39.1]} 11. Bg3 {[%clk 0:04:26.5]}
11... Bxg3 {[%clk 0:04:36.5]} 12. fxg3 {[%clk 0:04:25.6]} 12... Qd6 {[%clk
0:04:25.5]} 13. Nfd2 {[%clk 0:04:06.9]} 13... Nd7 {[%clk 0:04:19.8]} 14. Nc3
{[%clk 0:04:03.7]} 14... c6 {[%clk 0:04:17.8]} 15. Rae1 {[%clk 0:03:45.1]} 15...
Rfe8 {[%clk 0:04:16.8]} 16. a3 {[%clk 0:03:36.3]} 16... Kf7 {[%clk 0:04:13.8]}
17. Nf3 {[%clk 0:03:28.7]} 17... Rxe1 {[%clk 0:04:07.8]} 18. Rxe1 {[%clk
0:03:25.8]} 18... Re8 {[%clk 0:04:07.4]} 19. Rxe8 {[%clk 0:03:22.6]} 19... Kxe8
{[%clk 0:04:07.1]} 20. Qe2+ {[%clk 0:02:43.4]} 20... Qe7 {[%clk 0:04:03.7]} 21.
Qxe7+ {[%clk 0:02:40.2]} 21... Kxe7 {[%clk 0:04:03.3]} 22. Kf2 {[%clk
0:02:37.3]} 22... Ndf8 {[%clk 0:03:58.6]} 23. h4 {[%clk 0:02:30.4]} 23... Ne6
{[%clk 0:03:57.8]} 24. Ke3 {[%clk 0:02:20.4]} 1/2-1/2

[Event "Live Chess"]
[Site "Chess.com"]
[Date "2023.05.20"]
[Round "-"]
[White "jusjoel"]
[Black "NAZRIZ1977"]
[Result "0-1"]
[WhiteElo "263"]
[BlackElo "2138"]
[TimeControl "300"]
[EndTime "9:32:08 PDT"]
[Termination "NAZRIZ1977 won by checkmate"]

1. d4 {[%clk 0:04:52.2]} 1... Nf6 {[%clk 0:04:57.2]} 2. Nc3 {[%clk 0:04:46.3]}
2... d5 {[%clk 0:04:56.2]} 3. Bf4 {[%clk 0:04:36.6]} 3... g6 {[%clk 0:04:54.5]}
4. e3 {[%clk 0:04:32.7]} 4... Bg7 {[%clk 0:04:53.4]} 5. Qf3 {[%clk 0:04:29.4]}
5... O-O {[%clk 0:04:50.5]} 6. Bb5 {[%clk 0:04:22.8]} 6... c6 {[%clk 0:04:49.1]}
7. Ba4 {[%clk 0:04:19.4]} 7... c5 {[%clk 0:04:48]} 8. O-O-O {[%clk 0:04:06.5]}
8... Bg4 {[%clk 0:04:45.3]} 9. Qg3 {[%clk 0:03:46.9]} 9... Bxd1 {[%clk
0:04:42.9]} 10. Kxd1 {[%clk 0:03:39.3]} 10... Nh5 {[%clk 0:04:37.9]} 11. Qf3
{[%clk 0:03:22.8]} 11... Nxf4 {[%clk 0:04:36.4]} 12. Qxf4 {[%clk 0:03:21.2]}
12... c4 {[%clk 0:04:33.9]} 13. e4 {[%clk 0:03:14.3]} 13... a6 {[%clk
0:04:30.8]} 14. exd5 {[%clk 0:03:11.8]} 14... b5 {[%clk 0:04:29.7]} 15. Bxb5
{[%clk 0:03:06.8]} 15... axb5 {[%clk 0:04:28.3]} 16. Nxb5 {[%clk 0:03:04.9]}
16... Rxa2 {[%clk 0:04:26.6]} 17. b3 {[%clk 0:03:02.9]} 17... cxb3 {[%clk
0:04:24.8]} 18. cxb3 {[%clk 0:03:01.1]} 18... Qxd5 {[%clk 0:04:22.6]} 19. Qc7
{[%clk 0:02:57]} 19... Qxb5 {[%clk 0:04:19.3]} 20. Qxe7 {[%clk 0:02:51.7]} 20...
Qd3+ {[%clk 0:04:12.8]} 21. Kc1 {[%clk 0:02:37.9]} 21... Qc2# {[%clk 0:04:00.6]}
0-1

[Event "Live Chess"]
[Site "Chess.com"]
[Date "2023.05.20"]
[Round "-"]
[White "bristolunichess"]
[Black "CocheseUK"]
[Result "1-0"]
[WhiteElo "1847"]
[BlackElo "1177"]
[TimeControl "300"]
[EndTime "9:32:08 PDT"]
[Termination "bristolunichess won by checkmate"]

1. d4 {[%clk 0:04:53.2]} 1... d5 {[%clk 0:04:56.7]} 2. c4 {[%clk 0:04:52.3]}
2... dxc4 {[%clk 0:04:54.9]} 3. Nc3 {[%clk 0:04:48.6]} 3... e6 {[%clk
0:04:53.1]} 4. e3 {[%clk 0:04:46.8]} 4... Nf6 {[%clk 0:04:42.3]} 5. Bxc4 {[%clk
0:04:42.5]} 5... Bb4 {[%clk 0:04:25.5]} 6. Nf3 {[%clk 0:04:37.7]} 6... Ne4
{[%clk 0:04:17.9]} 7. Qc2 {[%clk 0:04:34.4]} 7... Nxc3 {[%clk 0:03:54.9]} 8.
bxc3 {[%clk 0:04:32.1]} 8... Bd6 {[%clk 0:03:52.2]} 9. O-O {[%clk 0:04:28.9]}
9... O-O {[%clk 0:03:49.4]} 10. e4 {[%clk 0:04:23.2]} 10... Nd7 {[%clk
0:03:27.5]} 11. e5 {[%clk 0:04:15.9]} 11... Be7 {[%clk 0:03:24]} 12. a4 {[%clk
0:04:08.9]} 12... Nb6 {[%clk 0:03:19.9]} 13. Ba2 {[%clk 0:04:05.2]} 13... c5
{[%clk 0:03:15.7]} 14. Bb1 {[%clk 0:04:02.6]} 14... cxd4 {[%clk 0:03:12.3]} 15.
Qxh7# {[%clk 0:04:01]} 1-0

[Event "Live Chess"]
[Site "Chess.com"]
[Date "2023.05.20"]
[Round "-"]
[White "Leonid_Starozhilov"]
[Black "Driftboard"]
[Result "1-0"]
[WhiteElo "2666"]
[BlackElo "760"]
[TimeControl "300"]
[EndTime "9:32:12 PDT"]
[Termination "Leonid_Starozhilov won by checkmate"]

1. e4 {[%clk 0:04:59.7]} 1... e5 {[%clk 0:04:59]} 2. d4 {[%clk 0:04:58.5]} 2...
exd4 {[%clk 0:04:57.7]} 3. Nf3 {[%clk 0:04:57.7]} 3... Nc6 {[%clk 0:04:55.8]} 4.
Bc4 {[%clk 0:04:57]} 4... Nf6 {[%clk 0:04:54.2]} 5. O-O {[%clk 0:04:55]} 5...
Nxe4 {[%clk 0:04:52.9]} 6. Re1 {[%clk 0:04:54.4]} 6... d5 {[%clk 0:04:49.6]} 7.
Bxd5 {[%clk 0:04:53.6]} 7... Qxd5 {[%clk 0:04:48.3]} 8. Nc3 {[%clk 0:04:53.1]}
8... Qf5 {[%clk 0:04:44.7]} 9. Nxe4 {[%clk 0:04:51.6]} 9... Be6 {[%clk
0:04:40.3]} 10. Ng3 {[%clk 0:04:49.4]} 10... Qd5 {[%clk 0:04:27.2]} 11. c4
{[%clk 0:04:36]} 11... Qxc4 {[%clk 0:04:06.6]} 12. Bg5 {[%clk 0:04:30.4]} 12...
Be7 {[%clk 0:03:56.8]} 13. Bxe7 {[%clk 0:04:22.7]} 13... Nxe7 {[%clk 0:03:55.3]}
14. Rc1 {[%clk 0:04:21.5]} 14... Qa6 {[%clk 0:03:45.7]} 15. Rxc7 {[%clk
0:04:20.4]} 15... O-O {[%clk 0:03:44.5]} 16. Rxe7 {[%clk 0:04:19.2]} 16... Rfe8
{[%clk 0:03:41.8]} 17. Rxe8+ {[%clk 0:04:16.1]} 17... Rxe8 {[%clk 0:03:40.5]}
18. Nxd4 {[%clk 0:04:15.4]} 18... Qxa2 {[%clk 0:03:34.1]} 19. Nxe6 {[%clk
0:04:10.4]} 19... Rxe6 {[%clk 0:03:32.2]} 20. Qd8+ {[%clk 0:04:08.6]} 20... Re8
{[%clk 0:03:30]} 21. Qxe8# {[%clk 0:04:08.5]} 1-0